fUSD/lending_fUSD_20260217
["ID","MTS","AMOUNT","RATE_DAILY","PERIOD"]
[405804666,1771326645677,-1000.0,0.00017899,3]
[405804667,1771326645688,-500.0,0.00017899,3]
[405804669,1771326645698,-3000.0,0.00017899,3]
[405804670,1771326645707,-261.90795033,0.00017899,3]
[405804671,1771326645717,-250.0,0.00017899,3]
[405804672,1771326645727,-526.36214318,0.00017899,3]
[405804673,1771326645737,-500.0,0.00017899,3]
[405804674,1771326645747,-3000.0,0.00017899,3]
[405804675,1771326645756,-250.0,0.00017899,3]
[405804676,1771326645765,-500.0,0.00017899,3]
[405804677,1771326645775,-3000.0,0.00017899,3]
[405804678,1771326645785,-250.0,0.00017899,3]
[405804679,1771326645795,-3000.0,0.00017899,3]
[405804680,1771326645805,-3000.0,0.00017899,3]
[405804681,1771326645815,-721.12765535,0.00017899,3]
[405804682,1771326645824,-3000.0,0.00017899,3]
[405804683,1771326645834,-747.8093786,0.00017899,3]
[405804684,1771326645843,-200.0,0.00017899,3]
[405804685,1771326645852,-775.47832561,0.00017899,3]
[405804686,1771326645862,-3099.28707761,0.00017899,3]
[405804687,1771326645871,-200.0,0.00017899,3]
[405804688,1771326645882,-804.17102365,0.00017899,3]
[405804689,1771326645892,-250.0,0.00017899,3]
[405804690,1771326645983,-200.0,0.00017899,3]
[405804691,1771326645993,-833.92535153,0.00017899,3]
[405804692,1771326646002,-250.0,0.00017899,3]
[405804693,1771326646012,-200.0,0.00017899,3]
[405804694,1771326646022,-864.78058953,0.00017899,3]
[405804695,1771326646032,-250.0,0.00017899,3]
[405804696,1771326646042,-200.0,0.00017899,3]
[405804697,1771326646051,-250.0,0.00017899,3]
[405804698,1771326646060,-514.41469683,0.00017899,3]
[405804699,1771326646070,-500.0,0.00017899,3]
[405804700,1771326646079,-151.0,0.00017899,3]
[405804701,1771326646088,-250.0,0.00017899,3]
[405804702,1771326646097,-500.0,0.00017899,3]
[405804703,1771326646107,-200.0,0.00017899,3]
[405804704,1771326646116,-151.0,0.00017899,3]
[405804705,1771326646125,-250.0,0.00017899,3]
[405804706,1771326646135,-250.0,0.00017899,3]
[405804707,1771326646144,-201.41552809,0.00017899,3]
[405804708,1771326646153,-151.0,0.00017899,3]
[405804709,1771326646163,-250.0,0.00017899,3]
[405804710,1771326646172,-250.0,0.00017899,3]
[405804712,1771326646181,-500.0,0.00017899,3]
[405804713,1771326646191,-151.0,0.00017899,3]
[405804715,1771326646200,-250.0,0.00017899,3]
[405804717,1771326646209,-160.0,0.00017899,3]
[405804719,1771326646218,-250.0,0.00017899,3]
[405804721,1771326646227,-151.0,0.00017899,3]
[405804723,1771326646236,-500.0,0.00017899,3]
[405804725,1771326646246,-160.32510575,0.00017899,3]
[405804727,1771326646255,-250.0,0.00017899,3]
[405804729,1771326646264,-250.0,0.00017899,3]
[405804731,1771326646274,-209.40437684,0.00017899,3]
[405804733,1771326646284,-151.0,0.00017899,3]
[405804735,1771326646294,-500.0,0.00017899,3]
[405804737,1771326646303,-250.0,0.00017899,3]
[405804739,1771326646312,-250.0,0.00017899,3]
[405804741,1771326646322,-151.0,0.00017899,3]
[405804743,1771326646331,-217.15233878,0.00017899,3]
[405804746,1771326646341,-151.0,0.00017899,3]
[405804747,1771326646350,-500.0,0.00017899,3]
[405804749,1771326646360,-250.0,0.00017899,3]
[405804752,1771326646369,-250.0,0.00017899,3]
[405804753,1771326646378,-151.0,0.00017899,3]
[405804756,1771326646387,-225.18697532,0.00017899,3]
[405804758,1771326646396,-500.0,0.00017899,3]
[405804759,1771326646406,-151.0,0.00017899,3]
[405804762,1771326646415,-299.40346672,0.00017899,3]
[405804764,1771326646424,-151.0,0.00017899,3]
[405804766,1771326646434,-233.51889341,0.00017899,3]
[405804768,1771326646443,-151.0,0.00017899,3]
[405804770,1771326646452,-151.0,0.00017899,3]
[405804772,1771326646462,-250.35514412,0.00017899,3]
[405804773,1771326646471,-500.0,0.00017899,3]
[405804776,1771326646481,-151.0,0.00017899,3]
[405804778,1771326646490,-151.0,0.00017899,3]
[405804780,1771326646499,-151.0,0.00017899,3]
[405804782,1771326646509,-500.0,0.00017899,3]
[405804784,1771326646519,-151.0,0.00017899,3]
[405804786,1771326646529,-151.0,0.00017899,3]
[405804788,1771326646539,-500.0,0.00017899,3]
[405804790,1771326646548,-151.0,0.00017899,3]
[405804792,1771326646558,-151.0,0.00017899,3]
[405804794,1771326646568,-209.40437684,0.00017899,3]
[405804796,1771326646576,-500.0,0.00017899,3]
[405804798,1771326646586,-151.0,0.00017899,3]
[405804800,1771326646595,-151.0,0.00017899,3]
[405804802,1771326646605,-204.10289238,0.00017899,3]
[405804804,1771326646614,-174.61919141,0.00017899,3]
[405804806,1771326646623,-151.0,0.00017899,3]
[405804808,1771326646633,-267.05598539,0.00017899,3]
[405804810,1771326646642,-184.18279927,0.00017899,3]
[405804812,1771326646651,-151.0,0.00017899,3]
[405804814,1771326646660,-151.0,0.00017899,3]
[405804816,1771326646670,-693.3919763,0.00017899,3]
[405804818,1771326646679,-719.04747942,0.00017899,3]
[405804819,1771326646688,-745.65223616,0.00017899,3]
[405804820,1771326646697,-773.2413689,0.00017899,3]
[405804821,1771326646707,-801.85129955,0.00017899,3]
[405804822,1771326646716,-3000.0,0.00017899,3]
[405804823,1771326646725,-831.51979763,0.00017899,3]
[405804824,1771326646735,-250.0,0.00017899,3]
[405804825,1771326646744,-3000.0,0.00017899,3]
[405804826,1771326646754,-862.28603014,0.00017899,3]
[405804827,1771326646764,-250.0,0.00017899,3]
[405804828,1771326646773,-1070.81608438,0.00017899,3]
[405804829,1771326646782,-894.19061326,0.00017899,3]
[405804830,1771326646792,-250.0,0.00017899,3]
[405804831,1771326646801,-250.0,0.00017899,3]
[405804832,1771326646810,-927.27566595,0.00017899,3]
[405804833,1771326646819,-250.0,0.00017899,3]
[405804834,1771326646828,-250.0,0.00017899,3]
[405804835,1771326646838,-961.58486559,0.00017899,3]
[405804836,1771326646847,-250.0,0.00017899,3]
[405804837,1771326646857,-253.83621088,0.00017899,3]
[405804838,1771326646866,-997.16350561,0.00017899,3]
[405804839,1771326646876,-302.70619241,0.00017899,3]
[405804840,1771326646886,-500.0,0.00017899,3]
[405804841,1771326646896,-500.0,0.00017899,3]
[405804842,1771326646905,-226.88409827,0.00017899,3]
[405804843,1771326646914,-5008.1800114,0.000179,3]
[405804844,1771326646923,-5814.85261277,0.000179,2]
[405804845,1771326646933,-1576.69293966,0.000179,2]
[405804846,1771326646945,-27737.69540553,0.000179,2]
[405804847,1771326646955,-2735.54784663,0.000179,3]
[405804848,1771326646964,-799.73373438,0.000179,2]
[405804849,1771326646974,-393.22051508,0.000179,2]
[405804850,1771326646984,-3421.85492952,0.000179,2]
[405804851,1771326646993,-500.0,0.000179,2]
[405804852,1771326647002,-500.0,0.000179,2]
[405804853,1771326647013,-500.0,0.000179,2]
[405804854,1771326647023,-500.0,0.000179,2]
[405804855,1771326647033,-164.78831149,0.000179,2]
[405804856,1771326647042,-500.0,0.00017918,2]
[405804857,1771326647051,-500.0,0.00017918,2]
[405804858,1771326647060,-500.0,0.00017918,2]
[405804859,1771326647069,-500.0,0.00017918,2]
[405804860,1771326647078,-500.0,0.00017918,2]
[405804861,1771326647087,-500.0,0.00017918,2]
[405804862,1771326647096,-440.0,0.00017918,2]
[405804863,1771326647105,-300.0,0.00017922,2]
[405804864,1771326647114,-300.0,0.00017922,2]
[405804865,1771326647123,-502.75243677,0.00017922,2]
[405804866,1771326647132,-260.99,0.00017922,2]
[405804867,1771326647141,-138343.2975218,0.00017923,2]
[405804868,1771326647150,-398223.6111637,0.00017923,2]
[405804869,1771326647158,-9225.1368321,0.00017923,2]
[405804870,1771326647167,-528.7641027,0.00017923,2]
[405804871,1771326647177,-504.09468333,0.00017973,2]
[405804872,1771326647186,-509.85751715,0.00017973,2]
[405804873,1771326647195,-573.45760824,0.00017973,2]
[405804874,1771326647204,-500.0,0.00017973,2]
[405804875,1771326647213,-616.27940406,0.00017973,2]
[405804876,1771326647222,-501.35605949,0.00017973,2]
[405804877,1771326647231,-500.99019732,0.00017973,2]
[405804878,1771326647240,-503.2366262,0.00017973,2]
[405804879,1771326647250,-502.37992604,0.00017973,2]
[405804880,1771326647259,-500.0,0.00017973,2]
[405804881,1771326647269,-500.0,0.00017973,2]
[405804882,1771326647279,-500.0,0.00017973,2]
[405804883,1771326647289,-310.16973746,0.00017973,2]
[405804884,1771326647298,-501.59728131,0.00017973,2]
[405804885,1771326647307,-500.0,0.00017973,2]
[405804886,1771326647316,-588.14229004,0.00017973,2]
[405804887,1771326647326,-194.4116551,0.00017973,2]
[405804888,1771326647335,-163.14629325,0.00017973,2]
[405804889,1771326647345,-501.78719611,0.00017973,2]
[405804890,1771326647355,-504.49684223,0.00017973,2]
[405804891,1771326647365,-500.0,0.00017973,2]
[405804892,1771326647374,-500.0,0.00017973,2]
[405804893,1771326647384,-504.66274009,0.00017973,2]
[405804894,1771326647394,-500.67013055,0.00017973,2]
[405804895,1771326647404,-502.80271569,0.00017973,2]
[405804896,1771326647413,-500.0,0.00017973,2]
[405804897,1771326647423,-500.0,0.00017973,2]
[405804898,1771326647433,-168.45138887,0.00017973,2]
[405804899,1771326647442,-500.60659592,0.00017973,2]
[405804900,1771326647452,-260.99,0.00017979,2]
[405804901,1771326647461,-947.1253165,0.00017982,2]
[405804902,1771326647471,-998.6278394,0.0001799,2]
[405804903,1771326647481,-998.6278394,0.0001799,2]
[405804904,1771326647491,-151.0,0.00017997,2]
[405804905,1771326647502,-325.08121142,0.00017999,2]
[405804906,1771326647513,-300.0,0.00017999,2]
[405804907,1771326647523,-666.0,0.00017999,2]
[405804908,1771326647533,-300.0,0.00017999,2]
[405804909,1771326647543,-666.0,0.00017999,2]
[405804910,1771326647555,-150.0,0.00017999,2]
[405804911,1771326647565,-150.0,0.00017999,2]
[405804912,1771326647575,-269.76817122,0.00017999,2]
[405804913,1771326647585,-28610.11146738,0.00017999,2]
[405804914,1771326647596,-3549901.59792436,0.00018,2]
[405804915,1771326647606,-7514.99024711,0.00018,2]
[405804916,1771326647616,-70287.04519593,0.00018,2]
[405804917,1771326647626,-9217405.90445932,0.00018,2]
[405804918,1771326647636,-200.0,0.00018,2]
[405804919,1771326647646,-1376070.47291817,0.00018,2]
[405804920,1771326648003,-781.06101906,0.00016408,2]
[405804921,1771326648015,-497.12974831,0.00016408,2]
[405804922,1771326648059,-1173.80923263,0.00016408,2]
[405804923,1771326648069,-7910.85072979,0.00016882,2]
[405804924,1771326648079,-7910.85072979,0.00017222,2]
[405804925,1771326648089,-3377.59858278,0.00017561,2]
[405804926,1771326648101,-445.40166449,0.00017561,2]
[405804927,1771326648112,-679.31956,0.00017561,2]
[405804928,1771326648215,-679.77855441,0.00017561,2]
[405804929,1771326649418,-2343.68669856,0.00017561,2]
[405804930,1771326649433,-385.06566955,0.00017561,2]
[405804931,1771326649443,-25534.60458789,0.000179,2]
[405804932,1771326649453,-7910.85072979,0.000179,2]
[405804933,1771326649463,-501.06962982,0.00017973,2]
[405804934,1771326649474,-150.0,0.00017973,2]
[405804935,1771326649483,-140170.88263964,0.00018,2]
[405804936,1771326649495,-10127.8274272,0.00018,2]
[405804937,1771326649506,-18006.17147216,0.00018,2]
[405804938,1771326649519,-1853.22023622,0.00018,2]
[405804939,1771326649533,-4131.7238808,0.00018,2]
[405804940,1771326649713,-1434.61950838,0.00018,2]
[405804941,1771326649725,-608.21731146,0.00018,2]
[405804942,1771326649736,-15659.33460643,0.00018,2]
[405804943,1771326649747,-547.44,0.00018,2]
[405804944,1771326649766,-1180.95304529,0.00018,2]
[405804945,1771326649777,-300.0,0.00018,2]
[405804946,1771326649788,-4023.91142385,0.00018,2]
[405804947,1771326649803,-406.02414376,0.00018,2]
[405804948,1771326649814,-569.18582437,0.00018,2]
[405804949,1771326649829,-702.71102554,0.00018,2]
[405804950,1771326649865,-9746.19370959,0.00018,2]
[405804951,1771326705123,10000.0,0.00018,30]
[405804952,1771326713706,10000.0,0.00018,30]
[405804954,1771326760482,150.0,0.00011233,120]
[405804956,1771326847958,-2032.9993,7.598e-05,2]
[405804957,1771326848038,-5429.4660204,7.598e-05,2]
[405804958,1771326848150,-10000.01,7.598e-05,2]
[405804959,1771326848271,-10000.01,7.598e-05,2]
[405804960,1771326848384,-10000.01,7.598e-05,2]
[405804961,1771326848483,-10000.01,7.598e-05,2]
[405804962,1771326856863,-10000.01,7.598e-05,2]
[405804963,1771326856987,-10000.01,7.598e-05,2]
[405804964,1771326857141,-10000.01,7.598e-05,2]
[405804965,1771326857246,-10000.01,7.598e-05,2]
[405804966,1771326857357,-4021.5966796,7.598e-05,2]
[405804967,1771326857393,-1956.8166408,7.598e-05,2]
[405804968,1771327055872,199.0,7.519e-05,2]
[405804970,1771327373668,3897.17783368,1.5e-05,2]
[405804971,1771327484347,-214.0,7.559e-05,2]
[405804972,1771327498892,-250.0,7.559e-05,2]
[405804973,1771327514062,-166.66,7.559e-05,2]
[405804974,1771327574964,-166.66,7.809e-05,2]
[405804975,1771327574992,-200.0,7.836e-05,2]
[405804976,1771327575019,-500.0,7.89e-05,2]
[405804977,1771327575150,-4369.51216632,8e-05,2]
[405804978,1771327575177,-10000.01,8e-05,2]
[405804979,1771327577656,-725.97295703,8e-05,2]
[405804980,1771327577679,-8548.06408594,8e-05,2]
[405804981,1771327580714,-4066.73,8.02e-05,2]
[405804982,1771327583861,-166.66,8.058e-05,2]
[405804983,1771327598918,-912.16073,8.178e-05,2]
[405804984,1771327605886,8175.68854,8.167e-05,2]
[405804985,1771327605908,10000.01,8.167e-05,2]
[405804986,1771327605930,10000.01,8.167e-05,2]
[405804987,1771327605953,10000.01,8.167e-05,2]
[405804988,1771327605974,10000.01,8.167e-05,2]
[405804989,1771327605995,10000.01,8.167e-05,2]
[405804990,1771327606020,10000.01,8.167e-05,2]
[405804991,1771327606051,10000.01,8.167e-05,2]
[405804992,1771327606072,10000.01,8.167e-05,2]
[405804993,1771327606093,10000.01,8.167e-05,2]
[405804994,1771327613068,-1824.32146,8.167e-05,2]
[405804995,1771327754006,175.31,6.178e-05,2]
[405804996,1771327754197,175.31,7.207e-05,2]
[405804997,1771327786463,-500.0,7.709e-05,2]
[405804998,1771327802135,-558.07,7.776e-05,2]
[405804999,1771327817240,-215.0,7.776e-05,2]
[405805012,1771327832304,-337.35563589,8e-05,2]
[405805017,1771327832342,-421.66567205,8e-05,2]
[405805039,1771327832804,-449.76901743,8e-05,2]
[405805040,1771327832882,-477.87236282,8e-05,2]
[405805047,1771327838238,-150.0,8.092e-05,2]
[405805048,1771327838251,-1200.0,8.117e-05,2]
[405805049,1771327838261,-193.0,8.117e-05,2]
[405805050,1771327838271,-300.0,8.117e-05,2]
[405805051,1771327838283,-150.0,8.117e-05,2]
[405805052,1771327838293,-195.73163774,8.118e-05,2]
[405805053,1771327838302,-290.81360858,8.118e-05,2]
[405805054,1771327838313,-500.0,8.118e-05,2]
[405805055,1771327838323,-500.0,8.118e-05,2]
[405805056,1771327838336,-500.0,8.118e-05,2]
[405805057,1771327838346,-500.0,8.118e-05,2]
[405805058,1771327838356,-500.0,8.118e-05,2]
[405805059,1771327838367,-350.05613428,8.118e-05,2]
[405805060,1771327838388,-149.94386572,8.118e-05,2]
[405805061,1771327838398,-395.72778241,8.118e-05,2]
[405805062,1771327838411,-12.30066738,8.118e-05,2]
[405805063,1771327838421,-414.3177992,8.118e-05,2]
[405805064,1771327838438,-85.6822008,8.118e-05,2]
[405805065,1771327838448,-500.0,8.118e-05,2]
[405805067,1771327838459,-500.0,8.118e-05,2]
[405805069,1771327838468,-500.0,8.118e-05,2]
[405805071,1771327838479,-500.0,8.118e-05,2]
[405805073,1771327838489,-500.0,8.118e-05,2]
[405805075,1771327838499,-500.0,8.118e-05,2]
[405805077,1771327838509,-500.0,8.118e-05,2]
[405805079,1771327838519,-500.0,8.118e-05,2]
[405805081,1771327838529,-500.0,8.118e-05,2]
[405805083,1771327838539,-500.0,8.118e-05,2]
[405805085,1771327838548,-500.0,8.118e-05,2]
[405805087,1771327838559,-500.0,8.118e-05,2]
[405805089,1771327838569,-500.0,8.118e-05,2]
[405805091,1771327838579,-500.0,8.118e-05,2]
[405805093,1771327838589,-500.0,8.118e-05,2]
[405805095,1771327838599,-500.0,8.118e-05,2]
[405805097,1771327838609,-500.0,8.118e-05,2]
[405805098,1771327838619,-500.0,8.118e-05,2]
[405805099,1771327838629,-500.0,8.118e-05,2]
[405805100,1771327838639,-500.0,8.118e-05,2]
[405805101,1771327838649,-500.0,8.118e-05,2]
[405805102,1771327838660,-500.0,8.118e-05,2]
[405805103,1771327838670,-500.0,8.118e-05,2]
[405805104,1771327838680,-500.0,8.118e-05,2]
[405805105,1771327838691,-500.0,8.118e-05,2]
[405805106,1771327838701,-500.0,8.118e-05,2]
[405805107,1771327838711,-500.0,8.118e-05,2]
[405805108,1771327838722,-500.0,8.118e-05,2]
[405805109,1771327838736,-500.0,8.118e-05,2]
[405805110,1771327838747,-500.0,8.118e-05,2]
[405805111,1771327838757,-500.0,8.118e-05,2]
[405805112,1771327838768,-500.0,8.118e-05,2]
[405805113,1771327838778,-500.0,8.118e-05,2]
[405805114,1771327838789,-500.0,8.118e-05,2]
[405805115,1771327838800,-500.0,8.118e-05,2]
[405805116,1771327838811,-500.0,8.118e-05,2]
[405805117,1771327838822,-500.0,8.118e-05,2]
[405805118,1771327838832,-500.0,8.118e-05,2]
[405805119,1771327838842,-500.0,8.118e-05,2]
[405805120,1771327838853,-500.0,8.118e-05,2]
[405805121,1771327838863,-500.0,8.118e-05,2]
[405805122,1771327838873,-181.04771694,8.118e-05,2]
[405805123,1771327838885,-500.0,8.118e-05,2]
[405805124,1771327838895,-500.0,8.118e-05,2]
[405805125,1771327838906,-500.0,8.118e-05,2]
[405805126,1771327838916,-500.0,8.118e-05,2]
[405805127,1771327838926,-500.0,8.118e-05,2]
[405805128,1771327838936,-400.0,8.118e-05,2]
[405805129,1771327838947,-500.0,8.118e-05,2]
[405805130,1771327838957,-500.0,8.118e-05,2]
[405805131,1771327838968,-500.0,8.118e-05,2]
[405805132,1771327838978,-500.0,8.118e-05,2]
[405805133,1771327838988,-500.0,8.118e-05,2]
[405805134,1771327838998,-500.0,8.118e-05,2]
[405805135,1771327839009,-3500000.0,8.119e-05,2]
[405805136,1771327839019,-47515.81,8.167e-05,2]
[405805137,1771327839031,-500.0,8.219e-05,2]
[405805138,1771327839041,-496.6504969,8.219e-05,2]
[405805139,1771327839052,-500.0,8.219e-05,2]
[405805140,1771327839063,-500.0,8.219e-05,2]
[405805141,1771327839073,-150.0,8.219e-05,2]
[405805142,1771327839083,-240.536161,8.219e-05,2]
[405805143,1771327839093,-331.072322,8.219e-05,2]
[405805144,1771327839104,-1249.146837,8.219e-05,2]
[405805145,1771327839114,-421.608483,8.219e-05,2]
[405805146,1771327839128,-512.144644,8.219e-05,2]
[405805147,1771327839139,-602.680806,8.219e-05,2]
[405805148,1771327839149,-693.216967,8.219e-05,2]
[405805149,1771327839159,-783.753128,8.219e-05,2]
[405805150,1771327839170,-874.289289,8.219e-05,2]
[405805151,1771327839180,-964.82545,8.219e-05,2]
[405805152,1771327839191,-713.798193,8.219e-05,2]
[405805153,1771327839201,-150.0,8.219e-05,2]
[405805154,1771327839210,-187.449234,8.219e-05,2]
[405805155,1771327839220,-224.898469,8.219e-05,2]
[405805156,1771327839230,-262.347704,8.219e-05,2]
[405805157,1771327839240,-299.796939,8.219e-05,2]
[405805158,1771327839252,-337.246174,8.219e-05,2]
[405805159,1771327839262,-374.695409,8.219e-05,2]
[405805160,1771327839272,-412.144644,8.219e-05,2]
[405805161,1771327839283,-449.593879,8.219e-05,2]
[405805162,1771327839293,-487.043114,8.219e-05,2]
[405805163,1771327839302,-359.232122,8.219e-05,2]
[405805164,1771327839313,-4194.14,8.219e-05,2]
[405805165,1771327839325,-999.99,8.219e-05,2]
[405805166,1771327839336,-175.31,8.237e-05,2]
[405805167,1771327839346,-3434.5,8.237e-05,2]
[405805168,1771327839356,-499.99,8.237e-05,2]
[405805169,1771327839370,-9999.99,8.237e-05,2]
[405805170,1771327839380,-150.99,8.237e-05,2]
[405805171,1771327839390,-96057.45,8.237e-05,2]
[405805172,1771327839400,-299.99,8.237e-05,2]
[405805173,1771327839410,-150.99,8.237e-05,2]
[405805174,1771327839419,-1184.93,8.237e-05,2]
[405805175,1771327839430,-5914.98,8.237e-05,2]
[405805176,1771327839440,-349.65,8.237e-05,2]
[405805177,1771327839450,-9999.99,8.237e-05,2]
[405805178,1771327839459,-9999.99,8.237e-05,2]
[405805179,1771327839469,-9999.99,8.237e-05,2]
[405805180,1771327839479,-9999.99,8.237e-05,2]
[405805181,1771327839489,-14638.92,8.237e-05,2]
[405805182,1771327839500,-166.66,8.308e-05,2]
[405805183,1771327839511,-331.0,8.333e-05,2]
[405805184,1771327839521,-267.14970002,8.433e-05,2]
[405805185,1771327839532,-368.0,8.453e-05,2]
[405805186,1771327839542,-250.0,8.48e-05,2]
[405805187,1771327839552,-250.0,8.48e-05,2]
[405805188,1771327839562,-632.4,8.5e-05,2]
[405805189,1771327839572,-250.0,8.554e-05,2]
[405805190,1771327839581,-166.66,8.557e-05,2]
[405805191,1771327839592,-2500.0,8.619e-05,2]
[405805192,1771327839602,-18071.71419624,8.719e-05,2]
[405805193,1771327839612,-1335.0,8.725e-05,2]
[405805194,1771327839622,-728.0,8.743e-05,2]
[405805195,1771327839632,-166.66,8.807e-05,2]
[405805196,1771327839642,-1680.0,8.929e-05,2]
[405805197,1771327839652,-4784.36,9.067e-05,2]
[405805198,1771327839663,-35942.3337,9.067e-05,2]
[405805199,1771327839673,-963.56052316,9.067e-05,2]
[405805200,1771327839683,-7609.4532204,9.067e-05,2]
[405805201,1771327839693,-12441.39523122,9.115e-05,2]
[405805202,1771327839703,-420.48,9.166e-05,2]
[405805203,1771327839713,-1215416.7348,9.167e-05,2]
[405805204,1771327839724,-175.31,9.266e-05,2]
[405805205,1771327839734,-2374.6,9.267e-05,2]
[405805206,1771327839744,-420.48,9.44e-05,2]
[405805207,1771327839755,-5972.279202,9.479e-05,2]
[405805208,1771327839766,-1338.371612,9.614e-05,2]
[405805209,1771327839779,-420.48,9.714e-05,2]
[405805210,1771327839789,-2351.0,9.822e-05,2]
[405805211,1771327839800,-420.48,9.988e-05,2]
[405805212,1771327839810,-231.0,9.989e-05,2]
[405805213,1771327839821,-231.0,9.989e-05,2]
[405805214,1771327839831,-231.0,9.989e-05,2]
[405805215,1771327839841,-231.0,9.989e-05,2]
[405805216,1771327839851,-231.0,9.989e-05,2]
[405805217,1771327839860,-231.0,9.989e-05,2]
[405805219,1771327839870,-231.0,9.989e-05,2]
[405805220,1771327839884,-231.0,9.989e-05,2]
[405805221,1771327839894,-231.0,9.989e-05,2]
[405805222,1771327839903,-1000.0,0.0001,2]
[405805223,1771327839913,-151.0,0.0001,2]
[405805224,1771327839924,-151.0,0.0001,2]
[405805225,1771327839934,-151.0,0.0001,2]
[405805226,1771327839943,-151.0,0.0001,2]
[405805227,1771327839953,-151.0,0.0001,2]
[405805228,1771327839962,-151.0,0.0001,2]
[405805229,1771327839972,-151.0,0.0001,2]
[405805230,1771327839988,-151.0,0.0001,2]
[405805231,1771327839998,-151.0,0.0001,2]
[405805232,1771327840008,-151.0,0.0001,2]
[405805233,1771327840018,-151.0,0.0001,2]
[405805234,1771327840028,-151.0,0.0001,2]
[405805236,1771327840038,-151.0,0.0001,2]
[405805237,1771327840048,-151.0,0.0001,2]
[405805238,1771327840058,-151.0,0.0001,2]
[405805239,1771327840067,-151.0,0.0001,2]
[405805240,1771327840078,-151.0,0.0001,2]
[405805241,1771327840087,-151.0,0.0001,2]
[405805242,1771327840097,-151.0,0.0001,2]
[405805243,1771327840107,-151.0,0.0001,2]
[405805244,1771327840116,-1051.12862644,0.0001,2]
[405805245,1771327840127,-665.75189293,0.0001,2]
[405805246,1771327840137,-665.75189293,0.0001,2]
[405805247,1771327840147,-1000.0,0.00010011,2]
[405805248,1771327840156,-32850.4601,0.00010011,2]
[405805249,1771327840166,-250.0,0.00010186,2]
[405805250,1771327840176,-420.49490725,0.00010262,2]
[405805251,1771327840186,-2823.55,0.00010475,2]
[405805252,1771327840552,-3292.0,0.00010804,2]
[405805253,1771327840565,-6001.86234487,0.000109,2]
[405805254,1771327840575,-6001.86234485,0.000109,2]
[405805255,1771327840585,-6001.86234485,0.000109,2]
[405805256,1771327840595,-9419.8,0.00010959,2]
[405805257,1771327840605,-6034.81891893,0.00011,2]
[405805258,1771327840615,-8321.30862174,0.00011099,2]
[405805259,1771327840626,-8321.30862165,0.00011099,2]
[405805260,1771327840636,-8321.30862165,0.00011099,2]
[405805261,1771327840646,-1783.55639832,0.00011099,2]
[405805262,1771327840656,-1783.5563983,0.00011099,2]
[405805263,1771327840666,-1783.5563983,0.00011099,2]
[405805264,1771327840675,-150.0,0.00011233,2]
[405805265,1771327840684,-10000.0,0.00011354,2]
[405805266,1771327840694,-4587.476,0.00011354,2]
[405805267,1771327840703,-1783.5563983,0.00011391,2]
[405805268,1771327840713,-4194.14,0.00011507,2]
[405805269,1771327840723,-7166.735042,0.00011849,2]
[405805271,1771327840733,-4609.0,0.00011884,2]
[405805272,1771327840742,-8321.30862165,0.00012015,2]
[405805273,1771327840752,-1606.045934,0.00012017,2]
[405805274,1771327840761,-6001.86234485,0.00012281,2]
[405805275,1771327840771,-1783.5563983,0.00012476,2]
[405805276,1771327840781,-70181.97252511,0.000129,2]
[405805277,1771327840791,-8321.30862165,0.00012996,2]
[405805278,1771327840801,-6453.0,0.00013073,2]
[405805279,1771327840810,-160.0,0.00013471,2]
[405805280,1771327840820,-173.57638878,0.00013471,2]
[405805281,1771327840830,-1051.12862644,0.00013486,2]
[405805282,1771327840839,-1783.5563983,0.00013561,2]
[405805283,1771327840848,-6001.86234485,0.00013686,2]
[405805284,1771327840858,-500.0,0.00013698,2]
[405805285,1771327840867,-500.0,0.00013698,2]